bitfinex/quotes_ETHUSD_20241001
["timestamp","ask_amount","ask_price","bid_price","bid_amount"]
[1727788060888,0.79170183,2623.6,2623.4,0.8266]
[1727788061260,4.60336183,2623.6,2623.4,0.8266]
[1727788061388,0.79143384,2623.5,2623.4,0.8266]
[1727788061593,0.79143384,2623.7,2623.5,0.8266]
[1727788061835,0.79143384,2623.7,2623.6,0.8266]
[1727788062036,0.79143384,2623.8,2623.6,3.81155]
[1727788062218,0.79143384,2623.9,2623.7,4.61191]
[1727788062397,0.79143384,2623.9,2623.8,0.8005]
[1727788063198,0.79143384,2623.9,2623.8,1.261704]
[1727788063398,4.60243384,2624.0,2623.8,1.261704]
[1727788064866,4.60227384,2624.1,2623.8,1.261704]
[1727788065342,0.79143384,2624.1,2623.8,1.261704]
[1727788065904,3.54378301,2623.9,2623.8,1.261704]
[1727788066147,8.14633685,2623.9,2623.8,0.8005]
[1727788066526,4.60255384,2623.9,2623.8,0.8005]
[1727788066733,3.81112,2623.9,2623.8,0.8005]
[1727788067040,4.60255384,2623.9,2623.8,0.8005]
[1727788067599,3.81112,2623.9,2623.8,0.8005]
[1727788068832,4.60240384,2624.0,2623.8,0.8005]
[1727788069525,3.81112,2623.9,2623.8,0.8005]
[1727788069769,7.35490301,2623.9,2623.8,0.8005]
[1727788072428,3.81149,2623.7,2623.4,0.7788]
[1727788072764,3.8115,2623.7,2623.4,0.7788]
[1727788077743,7.623,2623.7,2623.4,0.7788]
[1727788077978,3.8115,2623.7,2623.4,1.25048922]
[1727788078666,3.8113,2623.8,2623.4,1.25048922]
[1727788079553,3.81124,2623.9,2623.4,1.25048922]
[1727788079749,3.81141,2623.7,2623.4,1.25048922]
[1727788080337,3.81128,2623.8,2623.4,1.25048922]
[1727788080545,3.81099,2624.0,2623.6,0.7715]
[1727788080988,3.81114,2623.9,2623.6,0.7715]
[1727788082258,3.81099,2624.0,2623.6,0.7715]
[1727788082259,3.81105,2624.0,2623.6,0.7715]
[1727788083145,3.81119,2623.9,2623.6,0.7715]
[1727788083342,3.81119,2623.9,2623.7,0.50902921]
[1727788083898,7.62157,2624.2,2623.7,0.50902921]
[1727788084184,3.81116,2623.9,2623.7,0.50902921]
[1727788085248,3.81102,2624.0,2623.7,0.50902921]
[1727788085579,3.81113,2623.9,2623.7,0.50902921]
[1727788086589,7.6221,2624.0,2623.7,0.50902921]
[1727788086885,3.81102,2624.0,2623.7,0.50902921]
[1727788087373,3.81102,2624.0,2623.6,0.7715]
[1727788087374,3.81126,2623.8,2623.6,0.7715]
[1727788087577,3.81141,2623.7,2623.6,0.7715]
[1727788088259,3.54378301,2623.9,2623.4,0.7938]
[1727788088468,3.8117,2623.5,2623.4,0.7938]
[1727788088682,3.8117,2623.5,2623.3,0.00855199]
[1727788088683,3.81184,2623.4,2623.3,0.00855199]
[1727788089359,3.81172,2623.5,2623.3,0.00855199]
[1727788089946,3.81184,2623.4,2623.3,0.00855199]
[1727788094407,4.60327384,2623.4,2623.3,0.00855199]
[1727788095269,0.79143384,2623.4,2623.3,0.00855199]
[1727788095515,4.60327384,2623.4,2623.3,0.00855199]
[1727788098618,4.60326613,2623.4,2623.3,0.00855199]
[1727788099280,3.81184,2623.4,2623.3,0.00855199]
[1727788102232,6.63179963,2623.5,2623.3,0.00855199]
[1727788102583,2.82008963,2623.5,2623.3,0.00855199]
[1727788102896,6.63178963,2623.5,2623.3,0.00855199]
[1727788104223,3.81184,2623.4,2623.3,0.00855199]
[1727788106276,2.82008963,2623.5,2623.3,0.00855199]
[1727788106440,1.18460138,2623.5,2623.3,0.00855199]
[1727788106624,1.18460138,2623.5,2623.4,0.8289]
[1727788107268,4.99630138,2623.5,2623.4,0.8289]
[1727788110938,1.18460138,2623.5,2623.4,0.8289]
[1727788111470,1.18460138,2623.5,2623.4,1.30560921]
[1727788111705,4.99630138,2623.5,2623.4,0.8289]
[1727788113680,3.81184,2623.4,2623.3,0.00855199]
[1727788113888,5.44732825,2623.4,2623.3,0.00855199]
[1727788114878,5.99732825,2623.4,2623.3,0.00855199]
[1727788115493,4.36184,2623.4,2623.3,0.00855199]
[1727788115680,5.99732825,2623.4,2623.3,0.00855199]
[1727788121961,6.82982825,2623.4,2623.3,0.00855199]
[1727788124909,9.82982825,2623.4,2623.3,0.00855199]
[1727788129469,8.19259,2623.3,2623.2,0.11752016]
[1727788135995,9.82807825,2623.3,2623.2,0.11752016]
[1727788140756,8.17548,2623.1,2623.0,2.64204545]
[1727788140930,9.81096825,2623.1,2623.0,2.64204545]
[1727788141249,8.99776825,2623.1,2623.0,2.64204545]
[1727788150748,9.77266825,2623.1,2623.0,2.64204545]
[1727788151648,8.99776825,2623.1,2623.0,2.64204545]
[1727788159464,12.90237344,2623.1,2623.0,2.64204545]
[1727788166145,13.71227344,2623.1,2623.0,2.64204545]
[1727788166465,12.90237344,2623.1,2622.4,0.8013]
[1727788166668,3.81347,2622.3,2622.2,0.8195]
[1727788166867,5.44895825,2622.3,2622.2,0.8195]
[1727788167433,3.81347,2622.3,2622.2,0.8195]
[1727788169252,3.81331,2622.4,2622.2,0.8195]
[1727788169443,7.62671,2622.4,2622.2,0.8195]
[1727788170384,3.81344,2622.3,2622.2,0.8195]
[1727788192702,1.63548825,2622.4,2622.2,0.8195]
[1727788193215,5.44885825,2622.4,2622.2,0.8195]
[1727788193505,3.81337,2622.4,2622.2,0.8195]
[1727788196067,3.81344,2622.3,2622.2,0.8195]
[1727788198022,5.44892825,2622.3,2622.2,0.8195]
[1727788198305,3.81337,2622.4,2622.2,0.8195]
[1727788198611,3.81337,2622.4,2622.2,1.282837]
[1727788198790,3.81309,2622.6,2622.3,0.7847]
[1727788199125,3.81309,2622.6,2622.3,0.81348219]
[1727788199305,7.62618,2622.6,2622.3,0.81348219]
[1727788199508,3.81309,2622.6,2622.3,0.81348219]
[1727788199803,3.81309,2622.6,2622.4,0.50903392]
[1727788200324,7.62567,2622.8,2622.4,0.50903392]
[1727788200604,5.44841825,2622.7,2622.5,0.8031]
[1727788200770,1.63548825,2622.7,2622.5,0.8031]
[1727788201598,5.44834825,2622.7,2622.5,0.8031]
[1727788201901,5.44834825,2622.7,2622.5,1.31565739]
[1727788202302,3.81272,2622.8,2622.5,1.31565739]
[1727788202705,5.44839825,2622.7,2622.5,1.31565739]
[1727788203509,1.63548825,2622.7,2622.5,1.31565739]
[1727788204507,3.81272,2622.8,2622.5,1.31565739]
[1727788206216,3.81287,2622.7,2622.5,1.31565739]
[1727788206425,3.81278,2622.8,2622.5,0.8031]
[1727788207192,7.62559,2622.8,2622.5,0.8031]
[1727788207526,7.62561,2622.8,2622.5,0.8031]
[1727788207694,7.62559,2622.8,2622.5,0.8031]
[1727788208338,7.62559,2622.8,2622.5,1.27229003]
[1727788208900,3.81259,2622.9,2622.6,0.8114]
[1727788209105,5.44801825,2623.0,2622.6,0.88688453]
[1727788209329,3.81264,2622.9,2622.6,0.88688453]
[1727788209635,3.81274,2622.8,2622.6,0.88688453]
[1727788210323,5.44822825,2622.8,2622.6,0.88688453]
[1727788211430,1.63548825,2622.8,2622.6,0.88688453]
[1727788211642,7.62524,2622.9,2622.6,1.78513099]
[1727788211928,3.81257,2622.9,2622.6,1.70964646]
[1727788212138,7.62526,2622.9,2622.6,0.8114]
[1727788212529,3.90460519,2623.1,2622.7,0.7984]
[1727788212737,7.71690519,2623.1,2622.7,0.7984]
[1727788213842,3.81243,2623.0,2622.7,0.7984]
[1727788214042,3.90460519,2623.1,2622.9,4.56675]
[1727788214244,3.90460519,2623.1,2622.9,0.7542]
[1727788215431,3.90460519,2623.1,2622.9,1.21088]
[1727788215631,3.90460519,2623.1,2623.0,0.7853]
[1727788217208,3.90460519,2623.1,2623.0,4.59772]
[1727788218146,3.90460519,2623.1,2623.0,6.23320825]
[1727788218520,3.90460519,2623.1,2623.0,6.30944278]
[1727788218851,3.90460519,2623.1,2623.0,13.04629094]
[1727788219552,3.81084,2624.1,2623.6,0.8105]
[1727788219707,0.78984233,2624.2,2623.8,0.8105]
[1727788219913,0.78984233,2624.2,2623.3,6.81195]
[1727788219914,0.78984233,2624.2,2623.9,0.8105]
[1727788220144,0.78984233,2624.2,2623.9,0.62573783]
[1727788220353,0.78984233,2624.2,2624.0,0.8105]
[1727788221050,0.78984233,2624.2,2624.1,4.57213]
[1727788222057,0.78984233,2624.2,2624.1,6.20761825]
[1727788222353,1.1847635,2624.4,2624.3,3.81053]
[1727788222547,1.1847635,2624.4,2624.3,6.25421825]
[1727788222855,1.97460584,2624.6,2624.5,6.25392825]
[1727788223019,1.97460584,2624.6,2624.5,9.25392825]
[1727788223549,1.97460584,2624.6,2624.5,0.8082]
[1727788223937,3.61009409,2624.6,2624.2,0.7754]
[1727788224253,1.97460584,2624.6,2624.3,3.81052]
[1727788224618,1.97460584,2624.6,2624.3,3.81051]
[1727788225012,1.97460584,2624.6,2624.5,3.81024]
[1727788225429,1.97460584,2624.6,2624.5,4.60674]
[1727788225626,1.97460584,2624.6,2624.5,5.448441]
[1727788226950,1.97460584,2624.6,2624.5,0.7965]
[1727788227453,1.97460584,2624.6,2624.2,5.065686]
[1727788228011,1.97460584,2624.6,2624.2,8.876286]
[1727788228215,3.61009409,2624.6,2624.2,5.065686]
[1727788228422,3.61009409,2624.6,2624.0,4.59527]
[1727788228423,1.63548825,2624.4,2624.0,4.59527]
[1727788228623,1.97460584,2624.6,2624.2,3.81056]
[1727788228949,1.97460584,2624.6,2624.3,0.07620002]
[1727788229453,1.97460584,2624.6,2624.2,3.81056]
[1727788230351,1.97460584,2624.6,2624.2,4.270056]
[1727788233059,5.78470584,2624.6,2624.2,4.270056]
[1727788233222,1.97460584,2624.6,2624.2,4.270056]
[1727788234659,1.97460584,2624.6,2624.3,0.02698255]
[1727788236674,1.97460584,2624.6,2624.4,3.81027]
[1727788236867,1.97460584,2624.6,2624.5,5.01584575]
[1727788237158,1.97460584,2624.6,2624.5,4.98886526]
[1727788240068,1.97460584,2624.6,2624.5,7.98886526]
[1727788240368,1.75863333,2624.6,2624.5,7.98886526]
[1727788240770,1.25230217,2624.6,2624.5,38.57486626]
[1727788240951,2.37433889,2624.8,2624.7,4.60815]
[1727788241126,2.37433889,2624.8,2624.7,11.14827787]
[1727788242362,2.37433889,2624.8,2624.7,42.52721987]
[1727788242565,2.37433889,2624.8,2624.7,34.26769587]
[1727788242866,2.37433889,2624.8,2624.7,38.08077856]
[1727788243454,2.26381945,2624.8,2624.7,38.08077856]
[1727788244469,2.26381945,2624.8,2624.7,65.39394856]
[1727788245451,2.26381945,2624.8,2624.7,84.82394856]
[1727788245961,2.77006204,2625.1,2625.0,4.58062]
[1727788246188,2.77006204,2625.1,2625.0,11.17824147]
[1727788246386,2.77006204,2625.1,2625.0,11.12074787]
[1727788248093,2.77006204,2625.1,2625.0,46.12074787]
[1727788248387,2.77006204,2625.1,2625.0,73.07980319]
[1727788248781,2.77006204,2625.1,2625.0,87.34133319]
[1727788249283,2.77006204,2625.1,2625.0,62.97281132]
[1727788250485,2.77006204,2625.1,2625.0,27.97281132]
[1727788251777,2.77006204,2625.1,2625.0,8.54281132]
[1727788257698,2.77006204,2625.1,2625.0,7.77171132]
[1727788269016,2.77006204,2625.1,2625.0,7.77171132]
[1727788272822,2.77006204,2625.1,2625.0,3.80952]
[1727788273637,4.40325655,2625.1,2625.0,3.80952]
[1727788273931,5.15355655,2625.1,2625.0,3.80952]
[1727788274113,5.15355655,2625.1,2624.9,3.80965]
[1727788274321,0.8295,2625.0,2624.7,3.80985]
[1727788274498,1.63319451,2624.9,2624.8,3.80978]
[1727788274836,0.8295,2624.8,2624.6,3.81008]
[1727788275135,1.63319451,2624.7,2624.6,3.81008]
[1727788275514,0.8295,2624.8,2624.7,3.80995]
[1727788275716,0.8295,2624.8,2624.6,3.81007]
[1727788276122,0.8295,2624.8,2624.6,3.80999]
[1727788277701,3.53963344,2624.7,2624.6,3.80999]
[1727788281544,0.8295,2624.8,2624.7,3.80995]
[1727788281699,0.7577,2625.0,2624.7,3.80985]
[1727788282133,0.7577,2625.0,2624.8,3.80973]
[1727788283243,3.53963344,2624.9,2624.7,3.80994]
[1727788283738,3.53963344,2624.9,2624.5,3.81013]
[1727788283919,3.53963344,2624.9,2624.6,3.81001]
[1727788284841,0.7556,2624.6,2624.4,3.8103]
[1727788285006,3.53963344,2624.5,2624.4,3.8103]
[1727788286219,0.7556,2624.6,2624.5,3.81024]
[1727788287205,0.7556,2624.6,2624.4,7.62061]
[1727788287511,0.7556,2624.6,2624.4,3.8103]
[1727788287710,0.7556,2624.6,2624.4,7.62059]
[1727788288649,0.7556,2624.6,2624.5,3.81024]
[1727788289512,0.7556,2624.6,2624.4,3.81038]
[1727788290139,0.7556,2624.6,2624.3,3.81053]
[1727788290313,3.53963344,2624.5,2624.2,3.8106]
[1727788291640,3.53963344,2624.3,2624.2,3.8106]
[1727788292151,3.53963344,2624.5,2624.2,3.8106]
[1727788292726,0.7556,2624.6,2624.2,3.8106]
[1727788292930,0.7556,2624.6,2624.2,4.950054]
[1727788293131,0.7556,2624.6,2624.2,8.760654]
[1727788294654,0.7556,2624.6,2624.2,4.950054]
[1727788294822,0.7659,2624.4,2624.1,3.81076]
[1727788295348,0.55,2624.3,2624.0,3.81088]
[1727788295524,0.7672,2624.2,2623.9,11.22109]
[1727788295961,0.7672,2624.2,2623.8,4.60927411]
[1727788296628,0.7672,2624.2,2623.8,4.60926411]
[1727788296819,0.7826,2624.0,2623.8,0.79811411]
[1727788297160,4.87223344,2623.9,2623.8,0.79811411]
[1727788300963,8.68335344,2623.9,2623.8,0.79811411]
[1727788306566,1.3326,2623.9,2623.8,0.79811411]
[1727788306796,1.3103,2624.2,2623.8,0.79811411]
[1727788306969,5.12101,2624.2,2623.8,1.54245445]
[1727788307270,5.12101,2624.2,2623.8,5.35369445]
[1727788307671,8.93182,2624.2,2623.8,1.54245445]
[1727788307858,5.12101,2624.2,2623.8,0.79811411]
[1727788308060,0.55,2624.2,2623.8,4.60935411]
[1727788308236,0.381,2624.6,2623.8,4.60935411]
[1727788308237,4.58899,2624.4,2623.9,4.62503648]
[1727788308573,4.58899,2624.4,2623.9,5.28706866]
[1727788308737,3.81054,2624.3,2623.9,5.28706866]
[1727788308937,4.58906,2624.4,2623.9,5.28706866]
[1727788309637,0.55,2624.3,2623.9,5.28706866]
[1727788310371,0.55,2624.3,2623.9,5.28704866]
[1727788310570,0.55,2624.3,2624.0,0.60851628]
[1727788311876,4.36055,2624.3,2624.0,0.60851628]
[1727788312072,3.81034,2624.5,2624.0,4.47078836]
[1727788312282,3.8104,2624.4,2624.0,0.60851628]
[1727788312576,3.81101,2624.0,2623.8,0.79811411]
[1727788312774,4.57932,2623.9,2623.8,0.79811411]
[1727788313073,0.7682,2623.9,2623.8,0.79811411]
[1727788313473,5.12932,2623.9,2623.8,0.79811411]
[1727788313976,1.3182,2623.9,2623.8,0.79811411]
[1727788314308,0.55,2623.9,2623.8,0.79811411]
[1727788315578,0.55,2624.0,2623.8,0.79811411]
[1727788315780,0.55,2624.2,2623.8,6.14908946]
[1727788316079,0.55,2624.2,2623.9,3.81111]
[1727788316446,4.36073,2624.2,2623.8,6.14917946]
[1727788317457,4.36073,2624.2,2623.8,2.33791946]
[1727788317772,4.36073,2624.2,2623.8,1.59761411]
[1727788318192,0.55,2624.2,2623.8,5.40880411]
[1727788318369,0.55,2624.2,2623.9,3.81108]
[1727788320574,0.55,2624.2,2623.8,5.48507966]
[1727788320980,4.36071,2624.2,2623.8,5.48507966]
[1727788321185,0.55,2624.2,2623.8,5.48507966]
[1727788321485,0.55,2624.2,2623.8,6.69406357]
[1727788321685,4.36068,2624.2,2623.8,6.69406357]
[1727788322996,4.08963344,2624.2,2623.8,2.00709802]
[1727788323201,4.08963344,2624.2,2623.8,5.81832802]
[1727788323597,7.90034344,2624.2,2623.8,5.81832802]
[1727788324880,4.36071,2624.2,2623.8,5.89454358]
[1727788326902,0.55,2624.2,2623.8,5.89454358]
[1727788327969,4.3607,2624.2,2623.8,5.89454358]
[1727788328603,0.55,2624.3,2623.9,4.97705147]
[1727788328810,0.55,2624.4,2624.1,0.7652]
[1727788328992,0.8312,2624.7,2624.4,3.81037]
[1727788329357,4.63006,2624.9,2624.4,3.81037]
[1727788329491,3.80984,2624.8,2624.4,3.81037]
[1727788329671,3.80984,2624.8,2624.1,4.57591]
[1727788329672,3.80984,2624.8,2624.3,3.81051]
[1727788330274,3.80984,2624.8,2624.4,3.81037]
[1727788330474,0.55,2624.7,2624.5,0.7555]
[1727788330872,4.35975,2624.9,2624.5,0.7555]
[1727788331807,0.55,2624.9,2624.5,0.7555]
[1727788332014,1.42195234,2624.9,2624.4,3.81032]
[1727788332213,7.34946344,2624.8,2624.4,3.81032]
[1727788332782,3.53963344,2624.8,2624.4,3.81032]
[1727788333180,7.34947344,2624.8,2624.4,3.81032]
[1727788334114,4.31223344,2624.8,2624.4,7.6206]
[1727788334325,3.53963344,2624.8,2624.5,3.81017]
[1727788334621,0.55,2624.9,2624.5,3.81017]
[1727788334818,0.55,2624.9,2624.6,0.7689]
[1727788336215,4.35967,2624.9,2624.6,0.7689]
[1727788336415,4.35967,2624.9,2624.4,5.43886]
[1727788336416,3.80982,2624.8,2624.4,5.43886]
[1727788336620,8.10685344,2624.8,2624.4,3.81028]
[1727788336921,4.29703344,2624.8,2624.5,3.81023]
[1727788337219,7.34950344,2624.8,2624.4,4.572368]
[1727788337420,3.53963344,2624.8,2624.4,4.572368]
[1727788337984,7.34946344,2624.8,2624.4,4.572368]
[1727788338621,3.53963344,2624.8,2624.4,4.572368]
[1727788339125,0.55,2624.7,2624.2,4.59886]
[1727788339424,0.55,2624.3,2624.0,3.8109]
[1727788339801,0.55,2624.3,2623.9,4.58798]
[1727788340117,0.55,2624.3,2624.1,3.81082]
[1727788340486,0.55,2624.4,2624.1,3.81082]
[1727788340691,0.55,2624.4,2624.0,3.81096]
[1727788341000,3.8104,2624.4,2624.0,3.81096]
[1727788341197,0.55,2624.3,2624.0,3.81096]
[1727788341826,0.7909,2624.2,2624.0,3.81096]
[1727788343128,0.55,2624.3,2624.1,3.81083]
[1727788343534,0.55,2624.3,2624.0,3.81096]
[1727788346136,0.55,2624.1,2623.8,3.8112]
[1727788346337,0.7568,2624.0,2623.5,7.64261]
[1727788346637,8.10740344,2624.0,2623.6,3.81154]
[1727788346942,0.55,2623.9,2623.5,4.64261]
[1727788347240,0.55,2623.9,2623.6,3.81151]
[1727788347540,8.10746344,2624.0,2623.6,3.81153]
[1727788347698,0.55,2623.9,2623.5,4.64268]
[1727788347900,4.36112,2623.9,2623.5,3.81168]
[1727788348336,3.53963344,2623.8,2623.5,3.81168]
[1727788348544,0.55,2623.7,2623.3,5.41767411]
[1727788348717,4.35403344,2623.6,2623.3,4.61007411]
[1727788349238,0.8144,2623.6,2623.3,4.61007411]
[1727788356960,0.8144,2623.6,2623.3,0.79811411]
[1727788357257,4.62598,2623.6,2623.3,0.79811411]
[1727788358131,0.8144,2623.6,2623.3,0.79811411]
[1727788359163,4.62596,2623.6,2623.3,0.79811411]
[1727788360758,0.8144,2623.6,2623.3,0.79811411]
[1727788360972,0.8144,2623.6,2623.3,4.61009411]
[1727788361656,4.36141,2623.7,2623.3,4.61009411]
[1727788362360,8.17292,2623.7,2623.3,4.61009411]
[1727788362659,4.36141,2623.7,2623.3,4.61009411]
[1727788364379,4.36141,2623.7,2623.3,0.79811411]
[1727788365063,8.17296,2623.7,2623.3,0.79811411]
[1727788366458,4.36141,2623.7,2623.3,0.79811411]
[1727788366627,4.36141,2623.7,2623.3,4.61008411]
[1727788367664,5.99651312,2623.7,2623.3,4.61008411]
[1727788367860,5.99651312,2623.7,2623.3,0.79811411]
[1727788368063,3.81157,2623.6,2623.3,0.79811411]
[1727788369869,5.99680312,2623.5,2623.3,0.79811411]
[1727788370100,5.44680312,2623.5,2623.3,0.79811411]
[1727788372978,1.63510312,2623.5,2623.3,0.79811411]
[1727788373554,5.44681312,2623.5,2623.3,0.79811411]
[1727788374079,1.63510312,2623.5,2623.3,0.79811411]
[1727788374416,5.44681312,2623.5,2623.3,0.79811411]
[1727788375573,1.63510312,2623.5,2623.3,0.79811411]
[1727788376056,0.55,2623.5,2623.3,0.79811411]
[1727788377172,6.25271312,2623.7,2623.3,4.61009411]
[1727788377374,1.63510312,2623.7,2623.3,4.61009411]
[1727788378079,5.44654312,2623.7,2623.3,4.61009411]
[1727788378284,5.44654312,2623.7,2623.3,0.79811411]
[1727788378582,4.36162,2623.6,2623.3,0.79811411]
[1727788379146,1.63510312,2623.5,2623.3,0.79811411]
[1727788380788,0.55,2623.6,2623.3,4.61006411]
[1727788380959,5.44657312,2623.7,2623.3,4.61006411]
[1727788384482,5.44657312,2623.7,2623.3,0.79811411]
[1727788385281,5.44657312,2623.7,2623.3,4.61006411]
[1727788387386,1.63510312,2623.7,2623.3,0.79811411]
[1727788387560,5.44651312,2623.7,2623.3,4.61010411]
[1727788389593,4.5922,2623.9,2623.3,5.81508287]
[1727788389881,0.55,2623.8,2623.4,3.81181]
[1727788390061,4.36132,2623.8,2623.4,3.81181]
[1727788391154,1.63510312,2623.7,2623.4,3.81181]
[1727788391551,1.63510312,2623.7,2623.3,5.81512287]
[1727788392381,5.44661312,2623.7,2623.3,2.00320287]
[1727788392687,5.44661312,2623.7,2623.3,4.61010411]
[1727788392863,1.63510312,2623.7,2623.3,4.61010411]
[1727788393491,5.44653312,2623.7,2623.3,4.61010411]
[1727788394490,3.81163,2623.6,2623.3,0.79811411]
[1727788394694,5.44653312,2623.7,2623.3,0.79811411]
[1727788394987,9.25806312,2623.7,2623.3,0.79811411]
[1727788395195,3.81161,2623.6,2623.3,0.79811411]
[1727788395800,1.63510312,2623.5,2623.3,0.79811411]
[1727788397573,3.81142,2623.7,2623.3,4.61003411]
[1727788397574,5.44652312,2623.7,2623.3,4.61003411]
[1727788399295,3.81142,2623.7,2623.3,4.61003411]
[1727788399592,3.81142,2623.7,2623.3,3.81192]
[1727788399784,7.62291,2623.7,2623.3,3.81192]
[1727788400291,3.81142,2623.7,2623.3,3.81192]
[1727788403264,5.44652312,2623.7,2623.3,3.81192]
[1727788404505,3.81157,2623.6,2623.2,4.57103]
[1727788404671,1.63510312,2623.5,2623.2,4.57103]
[1727788405200,1.63510312,2623.5,2623.2,0.7589]
[1727788405766,1.63510312,2623.5,2623.2,4.57101]
[1727788405962,5.44652312,2623.7,2623.3,3.81198]
[1727788406268,5.44652312,2623.7,2623.2,4.571]
[1727788406465,9.25806312,2623.7,2623.2,4.571]
[1727788406974,5.44652312,2623.7,2623.3,3.81199]
[1727788407380,9.25806312,2623.7,2623.3,3.81199]
[1727788407779,5.44652312,2623.7,2623.3,3.81199]
[1727788409806,3.81163,2623.6,2623.2,4.57102]
[1727788412822,1.63510312,2623.5,2623.2,0.7589]
[1727788413111,1.63510312,2623.5,2623.2,4.57103]
[1727788413289,5.44685312,2623.5,2623.1,3.81221]
[1727788413783,1.63510312,2623.5,2623.2,3.81206]
[1727788413978,1.63510312,2623.5,2623.2,7.62412]
[1727788414194,1.63510312,2623.5,2623.2,3.81206]
[1727788414379,1.63510312,2623.5,2623.2,7.62412]
[1727788414712,4.60265,2623.6,2623.2,3.81204]
[1727788414713,0.7911,2623.6,2623.2,3.81204]
[1727788414868,5.44652312,2623.7,2623.3,4.193124]
[1727788415067,5.44652312,2623.7,2623.3,3.81192]
[1727788416677,9.25803312,2623.7,2623.2,3.81211]
[1727788416878,3.81157,2623.6,2623.2,3.81211]
[1727788419008,7.02773712,2623.7,2623.2,3.81211]
[1727788419215,5.44652312,2623.7,2623.3,3.81195]
[1727788419372,7.02773712,2623.7,2623.3,3.81195]
[1727788419815,3.81156,2623.6,2623.1,3.88837556]
[1727788419999,3.81156,2623.6,2623.2,3.81212]
[1727788422875,7.02773712,2623.7,2623.3,3.81198]
[1727788423607,7.02773712,2623.7,2623.2,3.81212]
[1727788423815,10.83926712,2623.7,2623.2,3.81212]
[1727788424182,3.81158,2623.6,2623.2,3.81212]
[1727788424774,3.81158,2623.6,2623.2,7.62419]
[1727788424974,3.81158,2623.6,2623.2,3.81207]
[1727788425384,7.02773712,2623.7,2623.2,7.62407]
[1727788425879,10.83927712,2623.7,2623.2,3.812]
[1727788426821,7.02773712,2623.7,2623.2,7.62406]
[1727788426976,3.81156,2623.6,2623.2,3.812]
[1727788428727,3.81156,2623.6,2622.9,0.79811411]
[1727788428728,5.44710312,2623.3,2622.9,3.81255]
[1727788428919,1.63510312,2623.1,2622.9,3.81255]
[1727788430006,1.63510312,2623.1,2622.7,1.56321411]
[1727788430217,1.3046,2623.5,2622.7,4.5779]
[1727788430218,1.63510312,2622.9,2622.7,4.5779]
[1727788430480,1.63510312,2622.9,2622.7,3.8128]
[1727788431110,1.63510312,2622.9,2622.7,3.81277]
[1727788431621,1.63510312,2622.9,2622.6,3.81297]
[1727788432332,1.63510312,2622.9,2622.7,3.81284]
[1727788432539,2.18510312,2623.1,2622.7,3.81284]
[1727788433743,5.99743312,2623.1,2622.7,3.81284]
[1727788434234,5.99743312,2623.1,2622.6,3.81299]
[1727788436024,5.99743312,2623.1,2622.5,4.62147]
[1727788436201,2.18510312,2623.1,2622.7,3.81275]
[1727788436699,5.99739312,2623.1,2622.7,3.81275]
[1727788437722,5.44739312,2623.1,2622.6,3.813]
[1727788438643,5.44739312,2623.1,2622.6,3.88925205]
[1727788439140,1.63510312,2622.7,2622.3,7.41]
[1727788439340,1.63510312,2622.7,2622.5,3.81313]
[1727788439760,0.7538,2622.8,2622.5,3.81313]
[1727788440051,0.7538,2622.8,2622.5,3.81305]
[1727788441630,3.81309,2622.6,2622.1,3.81366]
[1727788441985,1.63510312,2622.4,2622.1,3.81366]
[1727788442453,1.63510312,2622.4,2622.2,3.81356]
[1727788442950,1.63510312,2622.4,2622.1,3.81372]
[1727788443330,1.63510312,2622.4,2622.1,7.62738]
[1727788443528,1.63510312,2622.4,2622.1,3.81366]
[1727788445029,1.63510312,2622.4,2621.9,0.8153]
[1727788445231,1.63510312,2622.4,2622.1,3.8136]
[1727788445752,1.63510312,2622.4,2622.2,3.81357]
[1727788446522,0.8292,2622.8,2622.4,3.81323]
[1727788446724,2.46430312,2622.8,2622.5,3.81305]
[1727788446917,2.46450312,2623.0,2622.5,0.7626]
[1727788447234,2.46450312,2623.0,2622.6,3.81286]
[1727788447429,0.8294,2623.0,2622.6,3.81286]
[1727788447735,0.8294,2623.0,2622.7,3.81284]
[1727788448054,0.8294,2623.0,2622.6,3.81286]
[1727788448260,5.44739312,2623.1,2622.6,3.81286]
[1727788448562,4.60523,2623.2,2622.7,3.81274]
[1727788448742,4.60523,2623.2,2622.8,3.81271]
[1727788449958,4.60523,2623.2,2622.7,3.81285]
[1727788450568,8.41744,2623.2,2622.7,3.81285]
[1727788450725,0.7873,2622.8,2622.0,9.03131411]
[1727788451067,1.63510312,2622.2,2621.9,3.81396]
[1727788451356,1.63510312,2622.2,2621.8,3.81415]
[1727788451719,1.63510312,2622.2,2621.9,3.81402]
[1727788451959,1.63510312,2622.2,2621.9,4.576829]
[1727788452947,1.63510312,2622.2,2621.9,3.81402]
[1727788453577,4.60075,2622.3,2621.9,3.81402]
[1727788453936,0.7873,2622.3,2621.9,7.62797]
[1727788454159,0.7873,2622.3,2621.9,3.81395]
[1727788454539,4.60078,2622.3,2621.9,3.81395]
[1727788455170,0.7873,2622.3,2621.9,3.81395]
[1727788456162,0.7873,2622.3,2622.0,3.81388]
[1727788456368,0.7873,2622.3,2621.9,3.81395]
[1727788457383,0.7873,2622.3,2621.9,7.6279]
[1727788457599,3.5467044,2622.2,2621.9,3.81395]
[1727788457879,0.7873,2622.3,2621.9,3.81395]
[1727788459240,0.7873,2622.3,2621.7,3.81421]
[1727788459241,3.5467044,2622.2,2621.7,3.81421]
[1727788459683,3.5467044,2622.2,2621.8,3.81416]
[1727788460184,0.7873,2622.3,2621.8,3.81416]
[1727788460483,4.60078,2622.3,2621.8,3.81406]
[1727788460650,0.7873,2622.3,2621.9,3.81399]
[1727788463491,0.7873,2622.3,2622.1,3.81372]
[1727788464547,0.7873,2622.3,2622.0,3.81383]
[1727788467087,3.5467044,2622.2,2621.9,3.81402]
[1727788467296,3.5467044,2622.0,2621.7,3.81423]
[1727788467588,0.8073,2621.9,2621.7,3.81423]
[1727788467742,0.78,2622.1,2621.8,3.81417]
[1727788468824,0.78,2622.3,2621.9,3.814]
[1727788469275,0.78,2622.3,2621.8,0.8283]
[1727788469276,4.59346,2622.3,2621.8,4.64246]
[1727788469488,8.1401644,2622.3,2621.8,4.64246]